bitfinex-derivatives/quotes_ETHF0:USTF0_20250224
["timestamp","ask_amount","ask_price","bid_price","bid_amount"]
[1740405413742,0.74681,2678.0,2677.9,3.176]
[1740405413942,3.2078,2678.3,2677.9,3.176]
[1740405413943,3.2078,2678.3,2678.0,0.7468]
[1740405414155,0.74677,2678.2,2678.0,0.7468]
[1740405414448,3.2078,2678.3,2678.0,0.5606]
[1740405414645,3.95454,2678.3,2678.1,0.74677]
[1740405415042,3.2078,2678.3,2678.2,1.32185]
[1740405415247,0.00559942,2678.5,2678.2,0.5751]
[1740405415443,0.74671,2678.4,2678.2,0.5751]
[1740405415649,0.74671,2678.4,2678.2,1.32183]
[1740405416051,0.00559942,2678.5,2678.2,1.32183]
[1740405416354,0.75227942,2678.5,2678.3,0.7467]
[1740405416551,0.00559942,2678.5,2678.4,0.74669]
[1740405416752,0.00559942,2678.5,2678.3,0.74671]
[1740405416961,0.00559942,2678.5,2678.3,3.166]
[1740405416962,0.74669,2678.4,2678.3,3.166]
[1740405417255,0.00559942,2678.5,2678.3,3.166]
[1740405417857,0.00559942,2678.5,2678.4,0.5489]
[1740405421153,0.00559942,2678.5,2678.4,6.5489]
[1740405421361,0.5877,2679.3,2678.4,9.5029]
[1740405421652,0.5877,2679.3,2678.7,3.2078]
[1740405421859,0.5877,2679.3,2678.8,3.727]
[1740405422451,0.00559942,2679.3,2678.8,3.727]
[1740405423057,3.2078,2678.9,2678.4,3.156]
[1740405423258,0.5391,2678.8,2678.4,3.156]
[1740405423760,0.5391,2678.8,2678.2,0.571]
[1740405424061,3.2078,2678.6,2678.2,0.571]
[1740405424263,0.5391,2678.8,2677.8,3.21339942]
[1740405424264,0.74683,2677.9,2677.8,3.16259942]
[1740405424558,3.2078,2678.3,2677.8,3.90945942]
[1740405424761,0.74683,2677.9,2677.8,0.00559942]
[1740405425057,0.7468,2678.1,2677.8,0.75243942]
[1740405425260,0.74682,2678.0,2677.8,0.75244942]
[1740405425455,0.5391,2678.2,2677.8,0.00559942]
[1740405425769,0.74679,2678.1,2677.9,0.74683]
[1740405425948,0.5391,2678.2,2677.8,0.00559942]
[1740405426355,0.74683,2677.9,2677.8,0.00559942]
[1740405427559,1.29823,2677.9,2677.8,0.00559942]
[1740405430562,0.74695,2677.5,2677.4,0.00265981]
[1740405432963,3.21339942,2677.7,2677.4,0.00265981]
[1740405433163,0.74695,2677.5,2677.4,0.00265981]
[1740405435269,3.21339942,2677.7,2677.4,0.00265981]
[1740405435863,0.00559942,2677.7,2677.4,0.00265981]
[1740405455590,3.21339942,2677.7,2677.4,0.00265981]
[1740405455891,0.5538,2677.6,2677.4,0.00265981]
[1740405456093,0.5538,2677.6,2676.7,0.5503]
[1740405456094,0.5538,2677.6,2676.6,3.1]
[1740405456292,3.2078,2677.2,2676.5,3.6485]
[1740405456487,0.5587,2677.1,2676.5,4.1921]
[1740405457088,0.5479,2677.0,2676.5,4.1921]
[1740405457287,0.7472,2676.6,2676.5,1.0871]
[1740405457492,0.74729,2676.3,2676.2,0.7473]
[1740405457693,3.2078,2676.9,2676.0,44.5589]
[1740405457694,10.60407,2676.9,2676.1,0.5412]
[1740405457882,0.74731,2676.2,2676.1,0.5412]
[1740405458189,3.2078,2676.6,2676.1,0.5412]
[1740405458496,3.2078,2676.3,2675.6,3.2078]
[1740405458692,1.86828,2676.2,2675.7,0.5412]
[1740405458891,0.00559942,2676.2,2675.7,0.5412]
[1740405459092,0.74739,2675.9,2675.7,1.28863]
[1740405459294,0.74739,2676.0,2675.7,1.28863]
[1740405459598,0.00559942,2676.2,2675.7,0.5412]
[1740405459798,0.00559942,2676.2,2675.7,1.28863]
[1740405459997,0.00559942,2676.2,2675.7,0.5412]
[1740405460194,0.74742,2675.8,2675.7,0.5412]
[1740405460492,0.74742,2675.8,2675.6,3.2078]
[1740405460694,3.108,2676.1,2675.6,3.2078]
[1740405460899,0.74745,2675.7,2675.6,3.2078]
[1740405461199,3.2078,2676.0,2675.3,0.5412]
[1740405461600,3.00489,2675.9,2675.3,0.5412]
[1740405461896,0.7475,2675.6,2675.3,1.28875]
[1740405462097,0.74751,2675.5,2675.3,1.28875]
[1740405462300,0.74751,2675.5,2675.3,0.5412]
[1740405462491,0.74751,2675.5,2675.3,1.28876]
[1740405462693,0.74753,2675.4,2675.3,0.5412]
[1740405462893,3.113,2675.8,2675.3,0.5412]
[1740405463199,0.74749,2675.6,2675.4,0.74752]
[1740405463395,0.00559942,2676.2,2676.1,0.74734]
[1740405463598,0.00559942,2676.2,2675.8,3.2078]
[1740405463994,0.74736,2676.1,2675.8,3.9552]
[1740405464193,0.00559942,2676.2,2675.8,3.2078]
[1740405464394,0.00559942,2676.2,2675.5,3.7136]
[1740405464395,0.74739,2676.0,2675.7,0.74743]
[1740405464594,5.07615,2676.1,2675.5,1.33809]
[1740405464803,0.74744,2675.8,2675.6,0.74747]
[1740405465097,5.67085,2676.1,2675.4,0.5944]
[1740405465098,1.86842,2676.0,2675.4,0.74752]
[1740405465304,3.126,2675.9,2675.3,0.5412]
[1740405465501,1.8687,2675.6,2675.1,40.8]
[1740405465802,0.5947,2675.5,2675.0,0.74762]
[1740405465992,0.5947,2675.5,2674.8,4.3449]
[1740405466197,0.74761,2675.2,2674.9,40.8]
[1740405466399,6.9315,2675.5,2674.8,4.3449]
[1740405466704,0.74757,2675.3,2675.1,0.7476]
[1740405466904,0.74755,2675.4,2675.2,0.74758]
[1740405467105,0.74746,2675.7,2675.1,3.2078]
[1740405467397,0.74746,2675.7,2674.9,1.86915]
[1740405467398,0.5431,2675.9,2675.4,5.07662]
[1740405467596,0.5431,2675.9,2675.4,3.2078]
[1740405467803,0.74745,2675.7,2675.5,0.74749]
[1740405467999,0.5431,2675.9,2675.4,5.0766]
[1740405468193,0.5431,2675.9,2675.5,0.5714]
[1740405468400,4.50934,2676.1,2675.9,0.74739]
[1740405468705,0.74737,2676.0,2675.8,0.7474]
[1740405468899,0.74738,2676.0,2675.8,0.74741]
[1740405469203,4.50935,2676.1,2675.9,0.74737]
[1740405469410,0.00559942,2676.2,2675.7,3.2078]
[1740405469601,0.00559942,2676.2,2675.7,5.07638]
[1740405469801,0.00559942,2676.2,2676.1,0.74734]
[1740405470494,0.00559942,2676.2,2676.1,1.34034]
[1740405471692,1.8674,2677.5,2676.3,1.86821]
[1740405471899,3.2078,2677.3,2676.6,3.2078]
[1740405472095,3.2078,2677.3,2676.4,1.86808]
[1740405472301,0.74709,2677.0,2676.8,0.74713]
[1740405472501,0.74708,2677.1,2676.8,0.74713]
[1740405472800,0.7471,2677.0,2676.8,0.74714]
[1740405473106,0.74709,2677.0,2676.8,0.74712]
[1740405473400,0.74707,2677.1,2676.9,0.74711]
[1740405473608,0.75263942,2677.2,2677.0,0.74707]
[1740405473805,0.75263942,2677.2,2676.9,0.74711]
[1740405473806,0.74707,2677.1,2676.9,0.74711]
[1740405474008,0.74709,2677.0,2676.8,0.74713]
[1740405474308,0.00559942,2677.2,2676.7,0.00559942]
[1740405474502,0.75263942,2677.2,2676.7,0.00559942]
[1740405474698,0.00559942,2677.2,2676.9,0.7471]
[1740405474903,0.74707,2677.1,2676.7,0.57609942]
[1740405475105,0.7471,2677.0,2676.8,0.74712]
[1740405475304,0.00559942,2677.2,2676.7,0.57609942]
[1740405475504,0.74714,2676.8,2676.7,0.57609942]
[1740405475697,0.74714,2676.8,2676.7,0.00559942]
[1740405478311,3.2078,2677.0,2676.7,0.00559942]
[1740405478606,0.7471,2677.0,2676.8,0.74713]
[1740405478808,3.14259942,2677.2,2676.7,0.00559942]
[1740405479008,0.74711,2677.0,2676.8,0.74713]
[1740405479313,3.14259942,2677.2,2676.7,0.00559942]
[1740405479314,0.74714,2676.8,2676.7,0.00559942]
[1740405479708,1.29554,2676.8,2676.7,0.00559942]
[1740405480107,5.02194,2676.8,2676.7,0.00559942]
[1740405480410,10.2748,2676.8,2675.9,0.5526]
[1740405480612,0.74739,2675.9,2675.4,1.669]
[1740405480815,0.74737,2676.0,2675.8,0.74741]
[1740405481004,0.74737,2676.0,2675.7,0.74743]
[1740405481208,0.74745,2675.7,2675.4,1.669]
[1740405481401,1.86835,2676.1,2675.4,1.669]
[1740405481402,0.7475,2675.5,2675.4,1.1082]
[1740405482210,0.7475,2675.5,2675.4,0.5526]
[1740405482716,0.00559942,2675.8,2675.4,0.5526]
[1740405483308,3.2078,2675.6,2675.1,3.7634]
[1740405483515,3.6995,2675.5,2674.8,0.545]
[1740405483914,0.74761,2675.2,2674.9,41.54766]
[1740405484214,3.6995,2675.5,2674.9,40.8]
[1740405484419,3.91346,2675.7,2675.4,0.74752]
[1740405484911,3.166,2675.7,2675.5,0.74749]
[1740405485315,3.166,2675.7,2675.4,0.5437]
[1740405485514,0.00559942,2675.8,2675.4,0.5437]
[1740405485915,0.7475,2675.5,2675.4,0.5437]
[1740405486111,0.74747,2675.7,2675.4,1.29122]
[1740405486419,0.74748,2675.6,2675.4,1.29122]
[1740405486818,0.00559942,2675.8,2675.4,0.5437]
[1740405487019,0.74746,2675.7,2675.4,0.5437]
[1740405487219,0.74746,2675.7,2675.5,0.7475]
[1740405488324,0.00559942,2675.8,2675.6,0.74747]
[1740405488518,0.74745,2675.7,2675.5,0.74749]
[1740405488823,0.74748,2675.6,2675.4,1.29122]
[1740405489018,0.00559942,2675.8,2675.4,0.5437]
[1740405489323,0.00559942,2675.8,2675.4,1.29123]
[1740405489522,0.74748,2675.6,2675.4,1.29123]
[1740405489923,0.00559942,2675.8,2675.4,0.5437]
[1740405490516,0.7475,2675.5,2675.4,0.5437]
[1740405490914,3.16159942,2675.8,2675.1,0.5439]
[1740405491122,0.00559942,2675.8,2675.4,0.74753]
[1740405491419,0.00559942,2675.8,2675.2,2.42425]
[1740405491619,0.00559942,2675.8,2675.3,3.2078]
[1740405492017,0.74748,2675.6,2675.4,0.74751]
[1740405492218,0.00559942,2675.8,2675.2,0.5553]
[1740405493025,0.74751,2675.5,2675.2,0.5553]
[1740405493219,0.00559942,2675.8,2675.2,0.5553]
[1740405493522,0.00559942,2675.8,2675.3,1.86891]
[1740405493713,0.74745,2675.7,2675.5,0.74748]
[1740405493916,0.00559942,2675.8,2675.3,3.2078]
[1740405494225,0.00559942,2675.8,2675.6,3.2078]
[1740405494422,0.00559942,2675.8,2675.7,4.3422]
[1740405494725,0.00559942,2675.8,2675.7,1.1822]
[1740405495122,0.00559942,2675.8,2675.7,1.92965]
[1740405498315,3.771,2676.5,2675.7,7.1822]
[1740405498523,0.74722,2676.6,2676.4,0.74724]
[1740405498826,8.77525,2676.9,2676.0,3.2078]
[1740405499026,8.77525,2676.9,2676.2,0.5736]
[1740405499325,6.9074,2676.9,2676.2,0.5736]
[1740405499529,6.9074,2676.9,2676.3,0.00559942]
[1740405499530,3.2078,2676.6,2676.3,0.00559942]
[1740405499825,1.1515,2676.5,2676.3,0.00559942]
[1740405502523,4.3005,2676.5,2676.3,0.00559942]
[1740405503727,1.1515,2676.5,2676.3,0.00559942]
[1740405504527,3.2078,2676.6,2676.3,0.00559942]
[1740405511131,6.3388,2676.6,2676.3,0.00559942]
[1740405513035,6.3388,2676.6,2676.3,9.42e-06]
[1740405513332,0.74736923,2676.5,2675.4,1.1005]
[1740405513539,3.2078,2675.8,2675.4,1.1005]
[1740405531544,1.1603,2676.6,2675.7,3.2078]
[1740405531848,1.9093558,2676.6,2675.7,6.2908]
[1740405532043,1.9093558,2676.6,2676.0,3.2078]
[1740405532251,1.1603,2676.6,2676.1,1.144]
[1740405532744,1.1603,2676.6,2676.1,4.23]
[1740405533151,1.1603,2676.6,2676.2,0.5747]
[1740405533645,0.00559942,2676.8,2676.3,3.2078]
[1740405533840,0.00559942,2676.8,2676.7,3.2078]
[1740405534147,0.00559942,2676.8,2676.7,7.05897]
[1740405534341,1.30398,2677.4,2677.1,0.74703]
[1740405534542,1.30398,2677.4,2676.8,1.6633]
[1740405534746,0.557,2677.4,2676.8,1.6633]
[1740405535050,1.30399,2677.4,2677.1,0.74705]
[1740405535439,0.557,2677.4,2677.1,0.74705]
[1740405535750,1.30399,2677.4,2677.1,0.74705]
[1740405536150,1.30399,2677.4,2677.1,0.74704]
[1740405536639,0.74702,2677.3,2677.0,0.75266942]
[1740405537348,0.557,2677.4,2677.0,0.00559942]
[1740405537547,3.2078,2677.4,2677.0,0.00559942]
[1740405537752,1.1612,2677.3,2677.0,0.00559942]
[1740405537947,3.95486,2677.1,2677.0,0.00559942]
[1740405538156,3.2078,2677.1,2676.3,0.5644]
[1740405538353,0.74722,2676.6,2676.3,1.31167]
[1740405538556,0.74725,2676.4,2676.3,0.5644]
[1740405539553,0.5925,2676.7,2676.3,0.5644]
[1740405539750,0.74725,2676.5,2676.3,0.5644]
[1740405539954,0.5925,2676.7,2676.3,0.5644]
[1740405540351,0.74723,2676.5,2676.2,23.824]
[1740405540552,0.74723,2676.5,2676.3,0.74726]
[1740405540848,0.74721,2676.6,2676.4,0.74724]
[1740405541448,0.74721,2676.6,2676.2,23.824]
[1740405541650,0.74723,2676.5,2676.2,23.824]
[1740405541953,0.74722,2676.6,2676.3,0.74727]
[1740405542654,0.74722,2676.6,2676.2,23.824]
[1740405543057,0.74722,2676.6,2676.4,0.74725]
[1740405543251,0.74722,2676.6,2676.3,0.74728]
[1740405543650,0.74725,2676.5,2676.2,23.824]
[1740405543856,0.74726,2676.4,2676.2,24.57129]
[1740405544557,0.74723,2676.5,2676.3,0.74727]
[1740405544857,0.74722,2676.6,2676.2,3.098]
[1740405545161,1.1473,2676.7,2676.2,3.098]
[1740405545352,1.1473,2676.7,2676.1,3.2078]
[1740405546155,3.2078,2676.5,2675.6,0.5783]
[1740405546353,3.2078,2676.5,2675.7,3.082]
[1740405546551,3.2078,2676.2,2675.6,3.7861]
[1740405546755,1.1499,2676.1,2675.6,3.7861]
[1740405547156,1.15549942,2676.1,2675.6,5.65473]
[1740405547356,1.15549942,2676.1,2676.0,0.74736]
[1740405547750,1.15549942,2676.1,2675.9,0.74738]
[1740405547954,1.15549942,2676.1,2676.0,0.74736]
[1740405548360,0.57209942,2676.1,2676.0,0.74736]
[1740405548758,0.00559942,2676.1,2676.0,0.74736]
[1740405549559,0.00559942,2676.1,2676.0,1.32916]
[1740405551856,0.00559942,2676.1,2675.9,3.2078]
[1740405552063,0.74736,2676.0,2675.9,3.2078]
[1740405552256,1.86844,2676.0,2675.6,3.6523]
[1740405552559,0.74745,2675.7,2675.6,3.6523]
[1740405553064,3.2078,2675.9,2675.4,23.9298]
[1740405553258,0.7475,2675.5,2675.4,23.9298]
[1740405554059,0.5854,2675.7,2675.4,23.9298]
[1740405554362,0.7475,2675.5,2675.4,23.9298]
[1740405554765,0.7475,2675.5,2675.4,3.2078]
[1740405558063,0.5601,2675.6,2675.4,3.2078]
[1740405558261,1.30758,2675.6,2675.4,3.95531]
[1740405558762,0.7475,2675.5,2675.4,3.2078]
[1740405559265,0.5601,2675.6,2675.4,3.95533]
[1740405559459,1.30759,2675.6,2675.4,3.2078]
[1740405559865,0.7475,2675.5,2675.4,3.2078]
[1740405560458,0.5601,2675.6,2675.0,44.0078]
[1740405560660,0.74762,2675.1,2675.0,3.2078]
[1740405560970,1.86897,2675.3,2674.8,0.589]
[1740405561265,0.74767,2674.9,2674.8,0.589]
[1740405561867,2.46349,2675.5,2674.8,0.589]
[1740405562166,1.1445,2675.5,2674.8,0.589]
[1740405563268,3.7679,2675.6,2675.0,3.2078]
[1740405563469,3.7679,2675.6,2674.9,3.6459]
[1740405563768,0.5498,2675.5,2674.9,3.6459]
[1740405565567,0.5498,2675.5,2674.9,3.066]
[1740405566163,0.5498,2675.5,2674.8,0.589]
[1740405566565,0.5498,2675.5,2675.0,3.2078]
[1740405567060,0.5498,2675.5,2675.1,0.5735]
[1740405567863,0.5498,2675.5,2675.0,3.2078]
[1740405569063,0.5498,2675.5,2674.8,0.589]
[1740405569759,3.6009,2675.4,2674.8,0.589]
[1740405569966,3.2078,2675.3,2674.8,0.589]
[1740405581479,4.1471,2675.5,2675.0,3.2078]
[1740405582374,1.1041,2675.5,2675.0,3.2078]
[1740405583476,0.5543,2675.5,2675.0,3.2078]
[1740405584777,1.1209,2675.5,2675.0,3.2078]
[1740405589687,0.5543,2675.5,2675.0,3.2078]
[1740405589986,3.7679,2675.6,2675.0,3.2078]
[1740405590188,3.7679,2675.6,2675.1,0.5531]
[1740405592284,3.2078,2675.6,2675.1,0.5531]
[1740405592483,3.7648,2675.6,2675.2,0.5438]
[1740405592674,3.7648,2675.6,2675.3,0.5367]
[1740405600685,3.2078,2675.9,2675.3,3.7445]
[1740405600889,3.7624,2675.9,2675.3,3.7225]
[1740405601684,3.7624,2675.9,2675.2,40.8]
[1740405601889,3.2078,2675.5,2674.7,3.2078]
[1740405602086,1.6653,2675.4,2674.7,3.2078]
[1740405602293,1.1058,2675.7,2675.3,3.2078]
[1740405602488,1.6653,2675.7,2675.3,3.2078]
[1740405602686,1.0974,2675.7,2675.3,3.2078]
[1740405602887,1.0974,2675.7,2675.1,0.5808]
[1740405603384,0.5595,2675.7,2675.1,0.5808]
[1740405603593,3.7673,2675.7,2675.1,0.5808]
[1740405603892,6.8093,2675.7,2674.7,3.042]
[1740405604093,3.7673,2675.7,2675.1,0.5638]
[1740405604494,3.2078,2676.0,2675.2,0.5862]
[1740405604694,1.6783,2675.9,2675.2,3.794]
[1740405605696,0.00559942,2676.1,2675.8,3.2078]
[1740405605899,0.00559942,2676.1,2675.9,0.5638]
[1740405606100,0.552,2676.6,2675.9,3.56788]
[1740405606394,3.042,2677.1,2676.5,3.2078]
[1740405606598,0.552,2677.0,2676.6,0.5823]
[1740405606794,0.74725,2676.4,2676.3,3.042]
[1740405606996,1.86787,2676.8,2676.2,0.5823]
[1740405607303,0.74726,2676.4,2676.2,0.5823]
[1740405608202,0.74728,2676.3,2676.2,0.5823]
[1740405608590,4.3622,2676.7,2676.2,1.3296]
[1740405608794,0.74721,2676.6,2676.2,0.5823]
[1740405608999,0.74721,2676.6,2676.2,1.32959]
[1740405609298,4.3622,2676.7,2676.2,1.32959]
[1740405609299,0.74723,2676.5,2676.2,1.32959]
[1740405609803,4.3622,2676.7,2676.2,0.5823]
[1740405610001,0.74728,2676.3,2676.2,0.5823]
[1740405610202,4.3622,2676.7,2676.2,0.5823]
[1740405610506,3.2078,2676.7,2676.2,3.7901]
[1740405610703,3.2078,2676.7,2676.6,0.7472]
[1740405611005,0.00559942,2676.8,2676.7,0.74717]
[1740405611396,0.00559942,2676.8,2676.6,1.0879]
[1740405611605,0.75274942,2676.8,2676.7,0.579]
[1740405611999,0.00559942,2676.8,2676.7,0.579]
[1740405613305,0.00559942,2676.8,2676.7,1.32617]
[1740405613710,0.00559942,2676.8,2676.7,0.579]
[1740405614009,0.00559942,2676.8,2676.7,1.32617]
[1740405615607,3.2078,2677.6,2676.7,6.579]
[1740405615806,0.74707,2677.1,2676.9,0.7471]
[1740405616008,1.86744,2677.4,2676.8,3.2078]
[1740405616211,0.74708,2677.1,2676.8,3.95493]
[1740405616411,0.74704,2677.2,2676.8,3.2078]
[1740405616715,0.74707,2677.1,2676.8,3.2078]
[1740405616913,0.00559942,2677.2,2676.7,3.62]
[1740405617102,0.5383,2677.0,2676.7,3.62]
[1740405617411,0.00559942,2677.2,2676.8,0.74713]
[1740405617613,0.00559942,2677.2,2676.7,3.62]
[1740405617614,0.74712,2676.9,2676.7,4.36716]
[1740405618006,1.10679942,2677.2,2676.7,3.62]
[1740405618610,0.00559942,2677.2,2676.7,3.62]
[1740405618810,0.00559942,2677.2,2676.8,3.2078]
[1740405619613,0.00559942,2677.2,2676.7,3.62]
[1740405620217,0.00559942,2677.2,2676.8,3.2078]
[1740405622111,0.00559942,2677.2,2677.1,3.2078]
[1740405622312,0.00559942,2677.2,2677.1,6.2478]
[1740405622518,0.5483,2677.9,2677.1,6.2478]
[1740405622715,1.1162,2677.9,2677.2,1.7174]
[1740405623514,1.1162,2677.9,2677.3,0.00559942]
[1740405623813,0.00559942,2677.8,2677.3,0.00559942]
[1740405625419,0.00559942,2677.8,2677.4,3.2078]
[1740405625720,0.00559942,2677.8,2677.5,3.04]
[1740405629413,0.00559942,2677.8,2677.7,3.2078]
[1740405630417,0.5908,2678.5,2677.7,9.2078]
[1740405630613,0.5908,2678.5,2678.0,3.2078]
[1740405630819,0.5908,2678.5,2678.0,6.2478]
[1740405631414,0.59639942,2678.5,2678.0,6.2478]
[1740405631816,0.59639942,2678.5,2678.1,40.8]
[1740405633721,0.59639942,2678.5,2678.0,3.04]
[1740405634230,0.00559942,2678.5,2678.0,43.84]
[1740405634415,0.00559942,2678.5,2678.0,47.0478]
[1740405635421,0.00559942,2678.5,2678.0,6.2478]
[1740405635619,0.00559942,2678.5,2678.1,3.039]
[1740405635924,0.57949942,2678.5,2678.1,3.039]
[1740405636319,0.57949942,2678.5,2677.8,1.6553]
[1740405636517,3.2078,2678.2,2677.4,3.039]
[1740405636825,3.2078,2677.9,2677.4,0.536]
[1740405637025,0.5362,2677.8,2677.3,0.00559942]
[1740405637218,0.74697,2677.4,2677.3,0.00559942]
[1740405637624,3.7653,2677.6,2677.3,0.00559942]
[1740405637920,0.74697,2677.4,2677.3,0.00559942]
[1740405638222,0.74714,2676.8,2676.7,44.0078]
[1740405638419,0.74714,2676.8,2676.7,3.2078]
[1740405638818,0.5362,2677.1,2676.4,3.2078]
[1740405639020,3.2078,2677.3,2676.7,3.2078]
[1740405639221,3.2078,2677.3,2676.8,0.5642]
[1740405639421,3.2078,2677.3,2677.2,0.74703]
[1740405639728,0.00559942,2677.3,2677.2,0.74703]
[1740405640729,0.00559942,2677.3,2677.2,41.54703]
[1740405641328,0.00559942,2677.3,2677.2,44.58603]
[1740405641623,0.5747,2678.1,2677.3,1.86746]
[1740405641829,0.74676,2678.2,2677.7,3.2078]
[1740405642030,0.74676,2678.2,2677.9,0.74682]
[1740405642234,0.74676,2678.2,2677.8,0.5557]
[1740405642433,0.74676,2678.2,2677.8,1.30255]
[1740405642733,0.74676,2678.2,2677.9,0.74683]
[1740405643033,1.32272942,2678.3,2677.9,0.74681]
[1740405643231,0.57599942,2678.3,2677.9,0.74682]
[1740405643524,1.32274942,2678.3,2677.9,0.74682]
[1740405643724,0.57599942,2678.3,2677.8,0.5557]
[1740405643926,0.74679,2678.1,2677.8,1.30256]
[1740405644126,3.78379942,2678.3,2677.8,0.5557]
[1740405644326,3.78379942,2678.3,2678.0,0.7468]
[1740405644635,3.78379942,2678.3,2677.8,0.5557]
[1740405644933,0.57599942,2678.3,2678.0,3.9546]
[1740405645130,0.00559942,2678.3,2678.2,0.74675]
[1740405645633,0.00559942,2678.3,2678.1,3.78578]
[1740405645828,0.00559942,2678.3,2678.2,0.74675]
[1740405646226,0.00559942,2678.3,2678.1,0.74677]
[1740405646425,0.00559942,2678.3,2678.2,0.74675]
[1740405646628,0.00559942,2678.3,2678.1,3.79776]
[1740405646930,0.75233942,2678.3,2678.1,3.053]
[1740405647128,0.74678,2678.2,2678.0,3.2078]
[1740405647332,0.74678,2678.1,2678.0,3.2078]
[1740405648223,4.3007,2678.2,2677.6,3.2078]
[1740405648426,0.00559942,2678.3,2678.2,0.74675]
[1740405649530,0.00559942,2678.3,2678.2,3.95455]
[1740405651132,0.75231942,2678.3,2678.2,3.2078]
[1740405653527,0.74676,2678.2,2678.0,0.7468]
[1740405653728,0.75233942,2678.3,2677.7,5.07501]
[1740405654029,0.74677,2678.2,2677.7,3.2078]
[1740405654228,0.00559942,2678.3,2677.7,3.2078]
[1740405654425,0.00559942,2678.3,2678.0,0.74679]
[1740405654628,0.00559942,2678.3,2678.2,0.74675]
[1740405655134,0.00559942,2678.3,2678.1,1.7168]
[1740405655834,0.00559942,2678.3,2678.2,40.8]
[1740405656134,0.00559942,2678.3,2678.1,1.7168]
[1740405656634,0.00559942,2678.3,2678.1,42.5168]
[1740405658134,0.00559942,2678.3,2678.1,1.7168]
[1740405659736,0.00559942,2678.3,2677.6,3.2078]
[1740405659931,0.00559942,2678.3,2677.7,0.5496]
[1740405660126,0.74681,2678.0,2677.5,3.2078]
[1740405660334,3.2078,2678.1,2677.7,0.74689]
[1740405660531,3.2078,2678.1,2677.4,3.05]
[1740405660532,0.74687,2677.8,2677.6,0.74689]
[1740405660832,3.2078,2678.1,2677.5,3.2078]
[1740405661038,3.95459,2678.1,2677.9,0.74681]
[1740405661338,0.74681,2678.0,2677.8,0.74685]
[1740405661932,0.74685,2677.9,2677.7,0.74688]
[1740405662133,3.57432942,2678.3,2677.6,1.7173]
[1740405662330,1.70749942,2678.3,2677.6,1.7173]
[1740405662640,0.55299942,2678.3,2677.7,1.86723]
[1740405662835,0.55299942,2678.3,2678.0,0.74679]
[1740405663040,0.74676,2678.2,2678.0,0.74679]
[1740405663340,1.29972942,2678.3,2677.8,3.2078]
[1740405663643,0.55299942,2678.3,2678.0,0.7468]
[1740405663940,0.55299942,2678.3,2677.8,3.2078]
[1740405664735,0.55299942,2678.3,2677.8,6.2528]
[1740405666235,0.00559942,2678.3,2677.8,6.2528]
[1740405666437,0.00559942,2678.3,2678.1,3.2078]
[1740405666643,0.00559942,2678.3,2678.2,4.741]
[1740405666936,0.00559942,2678.3,2678.2,45.541]
[1740405667438,0.00559942,2678.3,2678.2,4.741]
[1740405669445,0.00559942,2678.3,2678.1,3.04]
[1740405669632,0.00559942,2678.3,2677.8,3.2078]
[1740405669837,0.00559942,2678.3,2677.9,1.6885]
[1740405670539,0.00559942,2678.3,2678.1,3.2078]
[1740405672143,0.00559942,2678.3,2678.2,3.039]
[1740405678637,0.00559942,2678.3,2677.9,1.1523]
[1740405678843,1.10579942,2678.3,2677.9,1.1523]
[1740405679042,1.68929942,2678.3,2677.9,1.1523]
[1740405679244,0.74689,2677.7,2677.6,3.038]
[1740405679438,3.2078,2678.1,2677.2,3.2078]
[1740405679647,0.747,2677.3,2677.2,0.548]
[1740405679840,0.74709,2677.0,2676.9,3.2078]
[1740405680448,0.74709,2677.0,2676.7,0.00559942]
[1740405680449,0.74714,2676.8,2676.7,0.00559942]
[1740405681044,0.74711,2677.0,2676.7,0.00559942]
[1740405681347,3.2078,2677.1,2676.7,0.75274942]
[1740405681651,0.74709,2677.0,2676.7,0.00559942]
[1740405681849,3.95488,2677.1,2676.7,0.75275942]
[1740405682146,0.74708,2677.1,2676.7,3.96054942]
[1740405682349,0.5644,2677.2,2676.7,3.21339942]
[1740405682544,0.74708,2677.1,2676.7,3.96054942]
[1740405682949,0.74713,2676.9,2676.7,3.21339942]
[1740405683149,0.5644,2677.2,2676.7,3.21339942]
[1740405683346,0.5644,2677.2,2676.9,0.74709]
[1740405684053,1.31144,2677.2,2676.8,1.32663]
[1740405684546,1.31144,2677.2,2676.9,0.74711]
[1740405684744,0.5644,2677.2,2676.9,0.74711]
[1740405684945,0.5644,2677.2,2676.8,0.5795]
[1740405685252,3.73396,2677.5,2677.2,0.74702]
[1740405685447,2.987,2677.5,2677.2,0.74702]
[1740405685746,1.1343,2677.8,2677.3,3.2078]
[1740405685949,0.74694,2677.6,2677.3,3.95479]
[1740405686249,0.74692,2677.6,2677.3,3.95479]
[1740405686650,0.74696,2677.5,2677.3,3.2078]
[1740405686850,0.74693,2677.6,2677.3,3.2078]
[1740405687051,1.86723,2677.7,2677.3,3.2078]
[1740405687251,5.07503,2677.7,2677.2,3.039]
[1740405687547,0.74702,2677.3,2677.2,3.039]
[1740405687745,3.2078,2677.7,2677.0,40.8]
[1740405687939,3.2078,2677.7,2676.8,6.7413]
[1740405687940,0.74709,2677.0,2676.9,3.042]
[1740405688448,0.74709,2677.0,2676.9,43.842]
[1740405690454,0.74709,2677.0,2676.9,40.8]
[1740405690952,0.74711,2676.9,2676.8,0.5795]
[1740405691154,0.74711,2676.9,2676.8,1.32664]
[1740405691453,0.74711,2676.9,2676.8,41.3795]
[1740405691652,0.74711,2676.9,2676.8,40.8]
[1740405693651,0.74711,2677.0,2676.9,0.7471]
[1740405694048,0.5424,2677.2,2676.8,40.8]
[1740405694350,3.7964,2677.7,2676.8,44.0078]